[Event "*** SCC Grand Prix: Titled Tuesday Blitz"]
[Site "Chess.com"]
[Date "2020.06.02"]
[Round "4"]
[White "Juanovic"]
[Black "Lennis93"]
[Result "0-1"]
[WhiteElo "2111"]
[BlackElo "2358"]
[TimeControl "180+1"]
[EndTime "10:36:32 PDT"]
[Termination "Lennis93 won by resignation"]

1. e4 {[%clk 0:03:00.9]} 1... c6 {[%clk 0:02:58.1]} 2. d4 {[%clk 0:03:00.2]}
2... d5 {[%clk 0:02:59]} 3. Nc3 {[%clk 0:03:00.4]} 3... dxe4 {[%clk 0:02:59.9]}
4. Nxe4 {[%clk 0:03:00.7]} 4... Nf6 {[%clk 0:03:00.8]} 5. Nxf6+ {[%clk
0:03:00.1]} 5... exf6 {[%clk 0:03:00.2]} 6. Bf4 {[%clk 0:02:57.2]} 6... Bd6
{[%clk 0:03:01.1]} 7. Bxd6 {[%clk 0:02:56.9]} 7... Qxd6 {[%clk 0:03:01.2]} 8.
Nf3 {[%clk 0:02:52.2]} 8... O-O {[%clk 0:03:01.5]} 9. Be2 {[%clk 0:02:51.9]}
9... Qb4+ {[%clk 0:03:00]} 10. Qd2 {[%clk 0:02:43.5]} 10... Qxb2 {[%clk
0:03:00.9]} 11. O-O {[%clk 0:02:44]} 11... Qa3 {[%clk 0:03:00.9]} 12. c4 {[%clk
0:02:41.4]} 12... Rd8 {[%clk 0:02:59.6]} 13. Rfd1 {[%clk 0:02:39.6]} 13... Bf5
{[%clk 0:02:58.6]} 14. Nh4 {[%clk 0:02:30.7]} 14... Be6 {[%clk 0:02:56.6]} 15.
Rac1 {[%clk 0:02:26.3]} 15... Nd7 {[%clk 0:02:50.5]} 16. Rc3 {[%clk 0:02:14.2]}
16... Qa5 {[%clk 0:02:48.2]} 17. d5 {[%clk 0:01:56.2]} 17... cxd5 {[%clk
0:02:42.6]} 18. cxd5 {[%clk 0:01:55.7]} 18... Nc5 {[%clk 0:02:42.4]} 19. Bf3
{[%clk 0:01:41.2]} 19... Bxd5 {[%clk 0:02:20]} 20. Bxd5 {[%clk 0:01:03.5]} 20...
Ne4 {[%clk 0:02:19.8]} 21. Bxf7+ {[%clk 0:00:54.3]} 21... Kxf7 {[%clk
0:02:19.1]} 0-1

[Event "*** SCC Grand Prix: Titled Tuesday Blitz"]
[Site "Chess.com"]
[Date "2020.06.02"]
[Round "4"]
[White "XxPetroffsxX"]
[Black "fridaywins"]
[Result "1-0"]
[WhiteElo "2057"]
[BlackElo "2223"]
[TimeControl "180+1"]
[EndTime "10:36:34 PDT"]
[Termination "XxPetroffsxX won by resignation"]

1. e4 {[%clk 0:03:00.9]} 1... e5 {[%clk 0:02:59.5]} 2. Nf3 {[%clk 0:03:00.3]}
2... Nc6 {[%clk 0:03:00]} 3. Bb5 {[%clk 0:03:00.4]} 3... a6 {[%clk 0:02:58.7]}
4. Ba4 {[%clk 0:02:59.9]} 4... Nf6 {[%clk 0:02:58.2]} 5. Bxc6 {[%clk 0:03:00.2]}
5... Be7 {[%clk 0:02:58.8]} 6. d3 {[%clk 0:03:00.4]} 6... dxc6 {[%clk
0:02:52.3]} 7. Nxe5 {[%clk 0:02:59.5]} 7... O-O {[%clk 0:02:49.1]} 8. O-O {[%clk
0:02:58.4]} 8... c5 {[%clk 0:02:48.6]} 9. Qe2 {[%clk 0:02:54]} 9... Re8 {[%clk
0:02:41.8]} 10. Nc3 {[%clk 0:02:50.6]} 10... b5 {[%clk 0:02:36.2]} 11. Nc6
{[%clk 0:02:47.2]} 11... Qd6 {[%clk 0:02:26.7]} 12. Nxe7+ {[%clk 0:02:46.2]}
12... Rxe7 {[%clk 0:02:27.1]} 13. Bg5 {[%clk 0:02:44.4]} 13... Qe5 {[%clk
0:02:25]} 14. Bxf6 {[%clk 0:02:33.6]} 14... Qxf6 {[%clk 0:02:24.7]} 15. Nd5
{[%clk 0:02:32]} 15... Qe5 {[%clk 0:02:24.3]} 16. Nxe7+ {[%clk 0:02:31.3]} 16...
Qxe7 {[%clk 0:02:24.4]} 17. f4 {[%clk 0:02:30.6]} 17... Bb7 {[%clk 0:02:20.5]}
18. Qe3 {[%clk 0:02:25.8]} 18... Re8 {[%clk 0:02:18.9]} 19. Rae1 {[%clk
0:02:24.4]} 19... Qd6 {[%clk 0:02:19.2]} 20. Rf3 {[%clk 0:02:18.2]} 20... f5
{[%clk 0:02:15.7]} 21. e5 {[%clk 0:02:13]} 21... Qd5 {[%clk 0:02:15.5]} 22. Rg3
{[%clk 0:02:09.3]} 22... Re6 {[%clk 0:02:11.9]} 23. b3 {[%clk 0:02:02.5]} 23...
Rg6 {[%clk 0:02:11.5]} 24. Rxg6 {[%clk 0:02:00.1]} 24... hxg6 {[%clk 0:02:11.1]}
25. Qg3 {[%clk 0:01:57.6]} 25... Qe6 {[%clk 0:02:05.9]} 26. c4 {[%clk
0:01:54.6]} 26... b4 {[%clk 0:02:04.3]} 27. Qe3 {[%clk 0:01:51.2]} 27... Qc6
{[%clk 0:02:03.5]} 28. Re2 {[%clk 0:01:49.6]} 28... Kf7 {[%clk 0:02:03.8]} 29.
Rd2 {[%clk 0:01:48.9]} 29... a5 {[%clk 0:01:56]} 30. d4 {[%clk 0:01:47.6]} 30...
cxd4 {[%clk 0:01:55.9]} 31. Qxd4 {[%clk 0:01:46.8]} 31... Kg8 {[%clk 0:01:52.3]}
32. Qd5+ {[%clk 0:01:44.7]} 32... Qxd5 {[%clk 0:01:50.6]} 33. cxd5 {[%clk
0:01:44.3]} 1-0

[Event "*** SCC Grand Prix: Titled Tuesday Blitz"]
[Site "Chess.com"]
[Date "2020.06.02"]
[Round "4"]
[White "Parhamov"]
[Black "adriangschnitzer"]
[Result "1-0"]
[WhiteElo "3078"]
[BlackElo "2465"]
[TimeControl "180+1"]
[EndTime "10:36:57 PDT"]
[Termination "Parhamov won by resignation"]

1. e4 {[%clk 0:03:00.9]} 1... c5 {[%clk 0:02:59.2]} 2. Nf3 {[%clk 0:02:59.8]}
2... Nc6 {[%clk 0:02:59.4]} 3. d4 {[%clk 0:03:00]} 3... cxd4 {[%clk 0:03:00.3]}
4. Nxd4 {[%clk 0:03:00]} 4... g6 {[%clk 0:03:00.9]} 5. c4 {[%clk 0:02:59]} 5...
Bg7 {[%clk 0:03:01.2]} 6. Be3 {[%clk 0:02:59]} 6... Nf6 {[%clk 0:03:01.7]} 7.
Nc3 {[%clk 0:02:59.3]} 7... O-O {[%clk 0:03:01.8]} 8. Be2 {[%clk 0:02:55.4]}
8... d6 {[%clk 0:03:01.8]} 9. O-O {[%clk 0:02:54.6]} 9... Bd7 {[%clk 0:03:01.7]}
10. f3 {[%clk 0:02:46.1]} 10... Nxd4 {[%clk 0:02:55.1]} 11. Bxd4 {[%clk
0:02:47]} 11... a5 {[%clk 0:02:55.3]} 12. Rc1 {[%clk 0:02:43.9]} 12... Bc6
{[%clk 0:02:54.7]} 13. Qd2 {[%clk 0:02:43.3]} 13... Nd7 {[%clk 0:02:54.5]} 14.
Be3 {[%clk 0:02:41.5]} 14... Nc5 {[%clk 0:02:54.7]} 15. Rfd1 {[%clk 0:02:41.2]}
15... a4 {[%clk 0:02:46.2]} 16. Rb1 {[%clk 0:02:37.9]} 16... Qb6 {[%clk
0:02:42.3]} 17. Nd5 {[%clk 0:02:37.8]} 17... Bxd5 {[%clk 0:02:38.5]} 18. cxd5
{[%clk 0:02:38.7]} 18... Rfc8 {[%clk 0:02:30.3]} 19. Rdc1 {[%clk 0:02:36.5]}
19... Qa5 {[%clk 0:02:14.8]} 20. Kf1 {[%clk 0:02:12.9]} 20... Qxd2 {[%clk
0:02:04.5]} 21. Bxd2 {[%clk 0:02:13.8]} 21... a3 {[%clk 0:01:51.4]} 22. b4
{[%clk 0:02:08.9]} 22... Nd7 {[%clk 0:01:39.3]} 23. Bb5 {[%clk 0:02:05.4]} 23...
Nb6 {[%clk 0:01:20.3]} 24. Be3 {[%clk 0:02:04.5]} 24... Rxc1+ {[%clk 0:01:01.8]}
25. Rxc1 {[%clk 0:02:05.3]} 25... Nc8 {[%clk 0:01:01.4]} 26. Bd7 {[%clk
0:02:03.2]} 26... Na7 {[%clk 0:00:59.3]} 27. Rc7 {[%clk 0:02:02.5]} 1-0

[Event "*** SCC Grand Prix: Titled Tuesday Blitz"]
[Site "Chess.com"]
[Date "2020.06.02"]
[Round "4"]
[White "Dedic8"]
[Black "CarlssonLudvig"]
[Result "1-0"]
[WhiteElo "2717"]
[BlackElo "2505"]
[TimeControl "180+1"]
[EndTime "10:37:01 PDT"]
[Termination "Dedic8 won on time"]

1. e4 {[%clk 0:03:00.9]} 1... c5 {[%clk 0:02:59.5]} 2. Nf3 {[%clk 0:03:01.3]}
2... d6 {[%clk 0:02:59.3]} 3. d4 {[%clk 0:03:01.7]} 3... cxd4 {[%clk 0:03:00.2]}
4. Nxd4 {[%clk 0:03:02.6]} 4... Nf6 {[%clk 0:03:00.4]} 5. Nc3 {[%clk 0:03:03.3]}
5... a6 {[%clk 0:03:00.9]} 6. h3 {[%clk 0:03:04]} 6... e6 {[%clk 0:02:56.9]} 7.
g4 {[%clk 0:03:03.8]} 7... b5 {[%clk 0:02:50.7]} 8. Bg2 {[%clk 0:03:02.6]} 8...
Bb7 {[%clk 0:02:51.1]} 9. g5 {[%clk 0:02:59.7]} 9... Nfd7 {[%clk 0:02:50.5]} 10.
h4 {[%clk 0:03:00.2]} 10... Nc6 {[%clk 0:02:46.8]} 11. b3 {[%clk 0:02:55.2]}
11... Rc8 {[%clk 0:02:37.6]} 12. Bb2 {[%clk 0:02:54.8]} 12... Nxd4 {[%clk
0:01:52.6]} 13. Qxd4 {[%clk 0:02:54.4]} 13... Qb6 {[%clk 0:01:53.1]} 14. Qxb6
{[%clk 0:02:40.8]} 14... Nxb6 {[%clk 0:01:53.4]} 15. O-O-O {[%clk 0:02:41.5]}
15... b4 {[%clk 0:01:45.5]} 16. Ne2 {[%clk 0:02:41.2]} 16... d5 {[%clk
0:01:44.7]} 17. Bd4 {[%clk 0:02:34.6]} 17... Bc5 {[%clk 0:01:38.6]} 18. Bxg7
{[%clk 0:02:34.8]} 18... Rg8 {[%clk 0:01:33.7]} 19. Bd4 {[%clk 0:02:34.9]} 19...
dxe4 {[%clk 0:01:32.9]} 20. Ng3 {[%clk 0:02:29.5]} 20... f5 {[%clk 0:00:34.1]}
21. gxf6 {[%clk 0:02:27.7]} 21... Ba8 {[%clk 0:00:03.5]} 22. Bxe4 {[%clk
0:02:24.2]} 22... Rxg3 {[%clk 0:00:02.7]} 23. Bxa8 {[%clk 0:02:24.9]} 1-0

[Event "*** SCC Grand Prix: Titled Tuesday Blitz"]
[Site "Chess.com"]
[Date "2020.06.02"]
[Round "4"]
[White "Fandorine"]
[Black "JakubPulpan"]
[Result "1-0"]
[WhiteElo "2912"]
[BlackElo "2722"]
[TimeControl "180+1"]
[EndTime "10:37:08 PDT"]
[Termination "Fandorine won by resignation"]

1. e4 {[%clk 0:03:00.9]} 1... e5 {[%clk 0:02:44.7]} 2. Nf3 {[%clk 0:03:01]} 2...
Nc6 {[%clk 0:02:44.2]} 3. Bc4 {[%clk 0:03:00.3]} 3... Nf6 {[%clk 0:02:43.2]} 4.
d3 {[%clk 0:03:00.5]} 4... Bc5 {[%clk 0:02:41.3]} 5. c3 {[%clk 0:02:59.4]} 5...
O-O {[%clk 0:02:40.4]} 6. Nbd2 {[%clk 0:02:58.5]} 6... a6 {[%clk 0:02:38.2]} 7.
Bb3 {[%clk 0:02:56.7]} 7... h6 {[%clk 0:02:35.7]} 8. h3 {[%clk 0:02:56.5]} 8...
Ba7 {[%clk 0:02:34]} 9. g4 {[%clk 0:02:51]} 9... d5 {[%clk 0:02:28.3]} 10. g5
{[%clk 0:02:48.1]} 10... hxg5 {[%clk 0:01:46.7]} 11. Nxg5 {[%clk 0:02:47.9]}
11... Ng4 {[%clk 0:01:46.6]} 12. hxg4 {[%clk 0:02:29.8]} 12... Qxg5 {[%clk
0:01:46.5]} 13. Qf3 {[%clk 0:01:35.8]} 13... Qxg4 {[%clk 0:01:40.7]} 14. Bxd5
{[%clk 0:01:19.2]} 14... Ne7 {[%clk 0:01:35.3]} 15. Qxg4 {[%clk 0:01:15.4]}
15... Bxg4 {[%clk 0:01:34.8]} 16. Bxb7 {[%clk 0:01:15.8]} 16... Rad8 {[%clk
0:01:34.2]} 17. Bxa6 {[%clk 0:01:15.9]} 17... Ng6 {[%clk 0:01:29.5]} 18. Nb3
{[%clk 0:01:02.1]} 18... Rfe8 {[%clk 0:01:22.5]} 19. Be3 {[%clk 0:00:56.4]}
19... Bxe3 {[%clk 0:01:18.3]} 20. fxe3 {[%clk 0:00:57.3]} 20... f5 {[%clk
0:01:19.2]} 21. Bc4+ {[%clk 0:00:56.6]} 21... Kf8 {[%clk 0:01:19.3]} 22. exf5
{[%clk 0:00:57.1]} 22... Bxf5 {[%clk 0:01:20.2]} 23. Rf1 {[%clk 0:00:56.7]} 1-0

[Event "*** SCC Grand Prix: Titled Tuesday Blitz"]
[Site "Chess.com"]
[Date "2020.06.02"]
[Round "4"]
[White "AsaHoffmann"]
[Black "Tomytoteph"]
[Result "1-0"]
[WhiteElo "2457"]
[BlackElo "2292"]
[TimeControl "180+1"]
[EndTime "10:37:10 PDT"]
[Termination "AsaHoffmann won by resignation"]

1. d4 {[%clk 0:02:55.8]} 1... Nf6 {[%clk 0:02:57.7]} 2. Bg5 {[%clk 0:02:54.5]}
2... e6 {[%clk 0:02:58.6]} 3. Nd2 {[%clk 0:02:53.7]} 3... Be7 {[%clk 0:02:54.1]}
4. e3 {[%clk 0:02:53.2]} 4... d5 {[%clk 0:02:53.3]} 5. Bd3 {[%clk 0:02:52.6]}
5... c5 {[%clk 0:02:52.8]} 6. c3 {[%clk 0:02:52.2]} 6... Nc6 {[%clk 0:02:51.8]}
7. f4 {[%clk 0:02:51.8]} 7... h6 {[%clk 0:02:45.9]} 8. Bh4 {[%clk 0:02:51.3]}
8... a6 {[%clk 0:02:43.8]} 9. Ngf3 {[%clk 0:02:50.7]} 9... c4 {[%clk 0:02:43.9]}
10. Bc2 {[%clk 0:02:50.1]} 10... b5 {[%clk 0:02:44.8]} 11. O-O {[%clk
0:02:49.7]} 11... b4 {[%clk 0:02:44.8]} 12. Ne5 {[%clk 0:02:49.1]} 12... Bb7
{[%clk 0:02:41.6]} 13. f5 {[%clk 0:02:37.7]} 13... Nxe5 {[%clk 0:02:03.2]} 14.
dxe5 {[%clk 0:02:36.8]} 14... Ne4 {[%clk 0:02:03]} 15. Nxe4 {[%clk 0:02:30.4]}
15... dxe4 {[%clk 0:02:01]} 16. Ba4+ {[%clk 0:02:20.5]} 16... Kf8 {[%clk
0:01:57.4]} 17. fxe6 {[%clk 0:02:06.2]} 17... Bxh4 {[%clk 0:01:50.5]} 18. Rxf7+
{[%clk 0:02:04.6]} 18... Kg8 {[%clk 0:01:49.8]} 19. Rxb7 {[%clk 0:01:47.2]}
19... Qg5 {[%clk 0:01:46.2]} 20. e7 {[%clk 0:01:37.6]} 20... Qxe3+ {[%clk
0:01:31.2]} 21. Kh1 {[%clk 0:01:36.4]} 21... Kh7 {[%clk 0:01:32.1]} 22. Qg4
{[%clk 0:01:25.3]} 22... Qg5 {[%clk 0:01:11.9]} 23. Qxe4+ {[%clk 0:01:22.9]}
23... Kg8 {[%clk 0:01:02.5]} 24. Qxc4+ {[%clk 0:01:21.9]} 24... Kh7 {[%clk
0:01:01.6]} 25. Bc2+ {[%clk 0:01:20.4]} 1-0

[Event "*** SCC Grand Prix: Titled Tuesday Blitz"]
[Site "Chess.com"]
[Date "2020.06.02"]
[Round "4"]
[White "MashaFromRussia"]
[Black "Supernotar"]
[Result "0-1"]
[WhiteElo "2406"]
[BlackElo "2700"]
[TimeControl "180+1"]
[EndTime "10:37:15 PDT"]
[Termination "Supernotar won by resignation"]

1. d4 {[%clk 0:03:00.9]} 1... d5 {[%clk 0:02:59.9]} 2. c4 {[%clk 0:02:58.1]}
2... dxc4 {[%clk 0:02:59.8]} 3. Nf3 {[%clk 0:02:57.8]} 3... Nf6 {[%clk
0:03:00.1]} 4. e3 {[%clk 0:02:58.1]} 4... e6 {[%clk 0:03:00.7]} 5. Bxc4 {[%clk
0:02:58.5]} 5... a6 {[%clk 0:03:01.3]} 6. O-O {[%clk 0:02:58.2]} 6... b5 {[%clk
0:03:01.6]} 7. Be2 {[%clk 0:02:55.8]} 7... Bb7 {[%clk 0:03:02]} 8. Nc3 {[%clk
0:02:55]} 8... Nbd7 {[%clk 0:03:02.2]} 9. Qb3 {[%clk 0:02:41.7]} 9... c5 {[%clk
0:02:56.9]} 10. Rd1 {[%clk 0:02:41.6]} 10... Be7 {[%clk 0:02:54.5]} 11. dxc5
{[%clk 0:02:28.8]} 11... Bxc5 {[%clk 0:02:50.5]} 12. a4 {[%clk 0:02:10.4]} 12...
b4 {[%clk 0:02:47]} 13. Na2 {[%clk 0:01:54.6]} 13... Qb6 {[%clk 0:02:33.5]} 14.
a5 {[%clk 0:01:47.6]} 14... Qxa5 {[%clk 0:02:28.9]} 15. Bd2 {[%clk 0:01:47.8]}
15... Qb6 {[%clk 0:02:09.9]} 16. Rac1 {[%clk 0:01:00.9]} 16... O-O {[%clk
0:02:00.5]} 17. Nd4 {[%clk 0:00:54.1]} 17... a5 {[%clk 0:01:56.1]} 18. Rc2
{[%clk 0:00:31.7]} 18... a4 {[%clk 0:01:49.9]} 19. Qc4 {[%clk 0:00:29]} 19... b3
{[%clk 0:01:43.1]} 0-1

[Event "*** SCC Grand Prix: Titled Tuesday Blitz"]
[Site "Chess.com"]
[Date "2020.06.02"]
[Round "4"]
[White "Quaternitychess"]
[Black "HonzaVykouk"]
[Result "1-0"]
[WhiteElo "2826"]
[BlackElo "2633"]
[TimeControl "180+1"]
[EndTime "10:37:16 PDT"]
[Termination "Quaternitychess won by resignation"]

1. e4 {[%clk 0:02:59.5]} 1... c5 {[%clk 0:02:59.7]} 2. Nf3 {[%clk 0:02:59.1]}
2... d6 {[%clk 0:02:59.8]} 3. d4 {[%clk 0:02:57.1]} 3... cxd4 {[%clk 0:03:00.7]}
4. Nxd4 {[%clk 0:02:57.7]} 4... Nf6 {[%clk 0:03:00.9]} 5. Nc3 {[%clk 0:02:58.4]}
5... a6 {[%clk 0:03:01.6]} 6. Bg5 {[%clk 0:02:57.6]} 6... e6 {[%clk 0:03:01.6]}
7. Qf3 {[%clk 0:02:58.2]} 7... Nbd7 {[%clk 0:03:00.6]} 8. O-O-O {[%clk
0:02:58.7]} 8... Qc7 {[%clk 0:03:00.9]} 9. Kb1 {[%clk 0:02:58.9]} 9... b5 {[%clk
0:03:01.1]} 10. a3 {[%clk 0:02:36.3]} 10... Bb7 {[%clk 0:03:00.8]} 11. Bd3
{[%clk 0:02:35.5]} 11... h6 {[%clk 0:02:59.5]} 12. Bxf6 {[%clk 0:02:31.1]} 12...
Nxf6 {[%clk 0:02:59.3]} 13. Qh3 {[%clk 0:02:09.4]} 13... Be7 {[%clk 0:02:54.7]}
14. f4 {[%clk 0:02:08.9]} 14... Rc8 {[%clk 0:02:50.2]} 15. Rhe1 {[%clk
0:02:07.5]} 15... Nd7 {[%clk 0:02:47.9]} 16. e5 {[%clk 0:02:04.7]} 16... dxe5
{[%clk 0:02:46.4]} 17. Nxe6 {[%clk 0:02:04.4]} 17... fxe6 {[%clk 0:02:42.3]} 18.
Qxe6 {[%clk 0:01:54.3]} 18... Nf8 {[%clk 0:02:39.2]} 19. Bg6+ {[%clk 0:01:09.1]}
19... Nxg6 {[%clk 0:02:37.1]} 20. Qxg6+ {[%clk 0:01:10]} 20... Kf8 {[%clk
0:02:34.8]} 21. fxe5 {[%clk 0:01:08.6]} 21... Kg8 {[%clk 0:02:05.1]} 22. Qe6+
{[%clk 0:01:04.5]} 22... Kh7 {[%clk 0:02:03.9]} 23. Rd7 {[%clk 0:01:05]} 23...
Bc5 {[%clk 0:01:15.1]} 24. Qf5+ {[%clk 0:01:00.7]} 1-0

[Event "*** SCC Grand Prix: Titled Tuesday Blitz"]
[Site "Chess.com"]
[Date "2020.06.02"]
[Round "4"]
[White "KaterinaMiroshnik"]
[Black "Zmof"]
[Result "1-0"]
[WhiteElo "2437"]
[BlackElo "2239"]
[TimeControl "180+1"]
[EndTime "10:37:26 PDT"]
[Termination "KaterinaMiroshnik won by resignation"]

1. d4 {[%clk 0:03:00.7]} 1... f5 {[%clk 0:02:59.4]} 2. c4 {[%clk 0:03:00.5]}
2... Nf6 {[%clk 0:02:59.4]} 3. Nf3 {[%clk 0:03:00.9]} 3... g6 {[%clk 0:02:59.4]}
4. e3 {[%clk 0:03:00.8]} 4... Bg7 {[%clk 0:02:59.9]} 5. Nc3 {[%clk 0:03:01.7]}
5... O-O {[%clk 0:03:00.4]} 6. Bd3 {[%clk 0:03:02.2]} 6... d6 {[%clk 0:03:00.9]}
7. O-O {[%clk 0:03:03.1]} 7... Qe8 {[%clk 0:02:59.9]} 8. b4 {[%clk 0:03:03.6]}
8... e5 {[%clk 0:02:58.4]} 9. dxe5 {[%clk 0:03:03.5]} 9... dxe5 {[%clk
0:02:58.8]} 10. c5 {[%clk 0:03:04.4]} 10... e4 {[%clk 0:02:54.8]} 11. Bc4+
{[%clk 0:03:04.4]} 11... Be6 {[%clk 0:02:55.2]} 12. Bxe6+ {[%clk 0:03:03.3]}
12... Qxe6 {[%clk 0:02:55.3]} 13. Nd4 {[%clk 0:03:04.2]} 13... Qe7 {[%clk
0:02:54.5]} 14. Qb3+ {[%clk 0:03:04.3]} 14... Kh8 {[%clk 0:02:50]} 15. b5 {[%clk
0:03:00.8]} 15... Nbd7 {[%clk 0:02:40.3]} 16. c6 {[%clk 0:02:59]} 16... Nc5
{[%clk 0:02:35.8]} 17. Qb4 {[%clk 0:02:54.4]} 17... b6 {[%clk 0:02:32.2]} 18.
Na4 {[%clk 0:02:49.4]} 18... Nd5 {[%clk 0:02:29]} 19. Qa3 {[%clk 0:02:47]} 19...
Rae8 {[%clk 0:02:01]} 20. Bb2 {[%clk 0:02:44.3]} 20... Nd3 {[%clk 0:01:56.3]}
21. Qxe7 {[%clk 0:02:40.5]} 21... Rxe7 {[%clk 0:01:56.3]} 22. Ba3 {[%clk
0:02:39.4]} 22... Bxd4 {[%clk 0:01:10.2]} 23. exd4 {[%clk 0:02:37.6]} 23... Rd8
{[%clk 0:01:10.5]} 24. Bxe7 {[%clk 0:02:32.4]} 24... Nxe7 {[%clk 0:01:11.2]} 25.
Rfd1 {[%clk 0:02:27.6]} 25... Rxd4 {[%clk 0:01:11]} 26. Nb2 {[%clk 0:02:25.8]}
26... Nd5 {[%clk 0:01:04.9]} 27. Rac1 {[%clk 0:02:15.2]} 27... Kg7 {[%clk
0:01:02.5]} 28. Nxd3 {[%clk 0:02:11.4]} 28... exd3 {[%clk 0:01:02.1]} 29. Rd2
{[%clk 0:02:10.3]} 29... Kf6 {[%clk 0:00:57.6]} 30. Rcd1 {[%clk 0:02:08.9]}
30... Nf4 {[%clk 0:00:55.2]} 31. g3 {[%clk 0:02:05.2]} 31... Ne2+ {[%clk
0:00:52.8]} 32. Kf1 {[%clk 0:02:02.9]} 32... Nc3 {[%clk 0:00:47.8]} 33. Rxd3
{[%clk 0:02:01.5]} 33... Rc4 {[%clk 0:00:47.3]} 34. Rc1 {[%clk 0:01:58.5]} 1-0

[Event "*** SCC Grand Prix: Titled Tuesday Blitz"]
[Site "Chess.com"]
[Date "2020.06.02"]
[Round "4"]
[White "MITerryble"]
[Black "mbachez"]
[Result "1-0"]
[WhiteElo "2813"]
[BlackElo "2529"]
[TimeControl "180+1"]
[EndTime "10:37:32 PDT"]
[Termination "MITerryble won by resignation"]

1. Nf3 {[%clk 0:03:00.9]} 1... Nf6 {[%clk 0:02:59.8]} 2. c4 {[%clk 0:03:00.4]}
2... c6 {[%clk 0:02:59.7]} 3. e3 {[%clk 0:02:59.7]} 3... d5 {[%clk 0:02:59.3]}
4. b3 {[%clk 0:03:00.6]} 4... a5 {[%clk 0:02:58.3]} 5. Bb2 {[%clk 0:03:01]} 5...
a4 {[%clk 0:02:58.5]} 6. bxa4 {[%clk 0:03:01.9]} 6... Bf5 {[%clk 0:02:55.1]} 7.
Nc3 {[%clk 0:03:01.6]} 7... e6 {[%clk 0:02:55]} 8. Qb3 {[%clk 0:03:01.4]} 8...
Na6 {[%clk 0:02:46.3]} 9. d4 {[%clk 0:02:57.3]} 9... Nb4 {[%clk 0:02:27.5]} 10.
Rc1 {[%clk 0:02:56.8]} 10... Nd7 {[%clk 0:01:53.4]} 11. c5 {[%clk 0:02:42.2]}
11... Nd3+ {[%clk 0:01:49.6]} 12. Bxd3 {[%clk 0:02:41.9]} 12... Bxd3 {[%clk
0:01:50.5]} 13. Nxd5 {[%clk 0:02:42.3]} 13... Ba6 {[%clk 0:01:40.1]} 14. Nb4
{[%clk 0:02:40.8]} 14... Rb8 {[%clk 0:01:19.7]} 15. Bc3 {[%clk 0:02:37.7]} 15...
Be7 {[%clk 0:00:59.7]} 16. Nxa6 {[%clk 0:02:37.3]} 16... bxa6 {[%clk 0:01:00.6]}
17. Qc4 {[%clk 0:02:38.1]} 17... O-O {[%clk 0:00:59]} 18. Qxa6 {[%clk
0:02:29.4]} 18... Nf6 {[%clk 0:00:57.2]} 19. Qxc6 {[%clk 0:02:24.3]} 19... Nd5
{[%clk 0:00:54.7]} 20. O-O {[%clk 0:02:21.8]} 20... Ra8 {[%clk 0:00:50.9]} 21.
Bd2 {[%clk 0:02:19.3]} 21... Bf6 {[%clk 0:00:40.2]} 22. Rb1 {[%clk 0:02:17.9]}
22... Ne7 {[%clk 0:00:36.6]} 23. Qb5 {[%clk 0:02:17.3]} 23... Qd5 {[%clk
0:00:36.8]} 24. Qb3 {[%clk 0:02:17.4]} 24... Qe4 {[%clk 0:00:36.4]} 25. a5
{[%clk 0:02:14.3]} 25... Nd5 {[%clk 0:00:36.1]} 26. Rfc1 {[%clk 0:02:09.8]}
26... g5 {[%clk 0:00:36.3]} 27. Qc2 {[%clk 0:02:09.2]} 27... Qg4 {[%clk
0:00:33.6]} 28. h3 {[%clk 0:02:07.4]} 28... Qh5 {[%clk 0:00:33.6]} 29. Qe4
{[%clk 0:02:08.1]} 29... Bd8 {[%clk 0:00:28.5]} 30. Rb5 {[%clk 0:02:00.2]} 30...
Bc7 {[%clk 0:00:27.3]} 31. Qg4 {[%clk 0:01:58]} 1-0

[Event "*** SCC Grand Prix: Titled Tuesday Blitz"]
[Site "Chess.com"]
[Date "2020.06.02"]
[Round "4"]
[White "MarcoRiehle"]
[Black "TrenerChos"]
[Result "1-0"]
[WhiteElo "2621"]
[BlackElo "2350"]
[TimeControl "180+1"]
[EndTime "10:37:34 PDT"]
[Termination "MarcoRiehle won by resignation"]

1. e4 {[%clk 0:03:00.9]} 1... c5 {[%clk 0:02:58.6]} 2. a3 {[%clk 0:03:00.2]}
2... e5 {[%clk 0:02:54.4]} 3. Nc3 {[%clk 0:02:59.5]} 3... Nf6 {[%clk 0:02:53.6]}
4. Bc4 {[%clk 0:02:58.7]} 4... Be7 {[%clk 0:02:51.7]} 5. d3 {[%clk 0:02:58.4]}
5... O-O {[%clk 0:02:51.3]} 6. f4 {[%clk 0:02:56.9]} 6... d6 {[%clk 0:02:49.9]}
7. Nf3 {[%clk 0:02:56.9]} 7... Nc6 {[%clk 0:02:49.3]} 8. O-O {[%clk 0:02:56.5]}
8... a6 {[%clk 0:02:46.2]} 9. f5 {[%clk 0:02:51.1]} 9... Nd4 {[%clk 0:02:44]}
10. Nd5 {[%clk 0:02:46.4]} 10... Nxd5 {[%clk 0:02:41.9]} 11. Bxd5 {[%clk
0:02:47.3]} 11... Rb8 {[%clk 0:02:40.8]} 12. Nxd4 {[%clk 0:02:46.1]} 12... exd4
{[%clk 0:02:30.7]} 13. g4 {[%clk 0:02:42.1]} 13... Kh8 {[%clk 0:02:23.2]} 14.
Qf3 {[%clk 0:02:39]} 14... Bg5 {[%clk 0:02:22.6]} 15. Qg3 {[%clk 0:02:36.3]}
15... Bh4 {[%clk 0:02:10.5]} 16. Qg2 {[%clk 0:02:34.7]} 16... b5 {[%clk
0:02:07.5]} 17. g5 {[%clk 0:02:33]} 17... f6 {[%clk 0:02:07.2]} 18. g6 {[%clk
0:02:23.3]} 18... h6 {[%clk 0:02:04.9]} 19. Bxh6 {[%clk 0:02:22.2]} 19... Bb7
{[%clk 0:01:57.4]} 20. Bf4 {[%clk 0:02:16.8]} 20... Bxd5 {[%clk 0:01:55.2]} 21.
Qh3 {[%clk 0:02:16.7]} 21... Re8 {[%clk 0:01:47.6]} 22. Qxh4+ {[%clk 0:02:16.6]}
22... Kg8 {[%clk 0:01:47.7]} 23. Qh7+ {[%clk 0:02:14.3]} 23... Kf8 {[%clk
0:01:47.3]} 24. exd5 {[%clk 0:02:14.6]} 24... Re5 {[%clk 0:01:38.4]} 25. Bxe5
{[%clk 0:02:12.9]} 25... dxe5 {[%clk 0:01:36.7]} 26. Qh8+ {[%clk 0:02:12.6]}
26... Ke7 {[%clk 0:01:36.8]} 27. Qxd8+ {[%clk 0:02:11.3]} 27... Rxd8 {[%clk
0:01:36]} 28. Rf3 {[%clk 0:02:11.2]} 28... Rh8 {[%clk 0:01:35.3]} 29. c3 {[%clk
0:02:09.8]} 29... Rh4 {[%clk 0:01:29.1]} 30. cxd4 {[%clk 0:02:07.1]} 30... Rxd4
{[%clk 0:01:28.4]} 31. Rh3 {[%clk 0:02:06.4]} 31... Rg4+ {[%clk 0:01:24.9]} 32.
Kf2 {[%clk 0:02:05]} 32... Rf4+ {[%clk 0:01:24.2]} 33. Rf3 {[%clk 0:02:05.4]}
33... Rh4 {[%clk 0:01:22.8]} 34. h3 {[%clk 0:02:05.1]} 34... Kd6 {[%clk
0:01:22.4]} 35. Rg1 {[%clk 0:02:04.3]} 35... Kxd5 {[%clk 0:01:21.2]} 36. Rg4
{[%clk 0:02:04.4]} 36... Rh5 {[%clk 0:01:21.2]} 37. Kg3 {[%clk 0:02:04.3]} 37...
Rh8 {[%clk 0:01:19.6]} 38. Rh4 {[%clk 0:02:03.3]} 38... Rd8 {[%clk 0:01:17.7]}
39. Rh7 {[%clk 0:02:02.9]} 39... Rd7 {[%clk 0:01:17.7]} 40. h4 {[%clk
0:02:03.2]} 40... c4 {[%clk 0:01:15.8]} 41. dxc4+ {[%clk 0:02:01.6]} 41... bxc4
{[%clk 0:01:15.8]} 42. h5 {[%clk 0:02:01.8]} 42... Ke4 {[%clk 0:01:09.8]} 43. h6
{[%clk 0:01:59.7]} 43... c3 {[%clk 0:01:07.3]} 44. Rxc3 {[%clk 0:01:56.2]} 44...
Kxf5 {[%clk 0:01:01.6]} 45. hxg7 {[%clk 0:01:55.1]} 45... Rd8 {[%clk 0:00:59.9]}
46. Rh8 {[%clk 0:01:55]} 1-0